[Event "Czech Youth U16 Girls 2024"]
[Site "Kouty nad Desnou"]
[Date "2024.03.09"]
[Round "1.1"]
[White "Zadrapova, Amalie"]
[Black "Cinkova, Vicky"]
[Result "0-1"]
[ECO "C42"]
[WhiteElo "1857"]
[BlackElo "1682"]
[Annotator "NA RC"]
[PlyCount "80"]
[EventDate "2024.03.10"]
[EventType "swiss"]
[EventRounds "9"]
[EventCountry "CZE"]
[SourceTitle "playchess.com"]
[Source "ChessBase"]
[SourceQuality "1"]
[TimeControl "40/5400+30:1800+30"]

1. e4 e5 2. Nf3 Nf6 3. Nxe5 d6 4. Nf3 Nxe4 5. Nc3 Nxc3 6. dxc3 Be7 7. Be3 Nc6 8. Qd2 Be6 9. O-O-O Bf6 10. Kb1 a6 11. Bd3 Qd7 12. Ng5 O-O-O 13. Nxe6 Qxe6 14. Rhe1 Qg4 15. f4 Kb8 16. h3 Qd7 17. Bf2 Rde8 18. Be4 g6 19. c4 Ne7 20. Bg1 Bh4 21. g3 Bf6 22. Qf2 Nc8 23. Rd3 Qa4 24. Rb3 b6 25. Bd3 Rxe1+ 26. Qxe1 Re8 27. Qf1 Qc6 28. a3 a5 29. Ka2 a4 30. Rb4 Qd7 31. Qf3 c5 32. Rb5 Qb7 33. Qf2 Na7 34. Qf1 Nxb5 35. cxb5 Bh8 36. Bc4 d5 37. Be2 Qe7 38. Bf3 Qe1 39. Qd3 Qc1 40. c3 Re1 0-1

[Event "Czech Youth U16 Girls 2024"]
[Site "Kouty nad Desnou"]
[Date "2024.03.09"]
[Round "1.2"]
[White "Mikesova, Lenka"]
[Black "Kaplanova, Dominika"]
[Result "0-1"]
[ECO "B15"]
[WhiteElo "1665"]
[BlackElo "1837"]
[Annotator "NA RC"]
[PlyCount "76"]
[EventDate "2024.03.10"]
[EventType "swiss"]
[EventRounds "9"]
[EventCountry "CZE"]
[SourceTitle "playchess.com"]
[Source "ChessBase"]
[SourceQuality "1"]
[TimeControl "40/5400+30:1800+30"]

1. e4 c6 2. d4 d5 3. Nc3 dxe4 4. Nxe4 Nf6 5. Nxf6+ exf6 6. Nf3 Bd6 7. Bc4 O-O 8. O-O Nd7 9. Bb3 Re8 10. Be3 Nf8 11. c3 Ng6 12. Qd2 Bg4 13. Ne1 Qc7 14. h3 Bd7 15. Nf3 Qc8 16. h4 Bg4 17. Nh2 Nxh4 18. g3 Nf3+ 19. Nxf3 Bxf3 20. Bd1 Bxd1 21. Raxd1 Qg4 22. Kg2 Qe4+ 23. Kh2 Qf3 24. Rg1 Re4 25. Rg2 Rae8 26. Re1 f5 27. Qd1 Qxd1 28. Rxd1 f4 29. gxf4 Bxf4+ 30. Bxf4 Rxf4 31. d5 c5 32. Kg3 Rf6 33. d6 Rd8 34. d7 Rg6+ 35. Kf3 Rxg2 36. Kxg2 Kf8 37. Rd5 b6 38. Rh5 h6 0-1

[Event "Czech Youth U16 Girls 2024"]
[Site "Kouty nad Desnou"]
[Date "2024.03.09"]
[Round "1.3"]
[White "Brezikova, Beata"]
[Black "Kavanova, Anezka"]
[Result "1-0"]
[ECO "B23"]
[WhiteElo "1804"]
[BlackElo "1661"]
[Annotator "NA RC"]
[PlyCount "41"]
[EventDate "2024.03.10"]
[EventType "swiss"]
[EventRounds "9"]
[EventCountry "CZE"]
[SourceTitle "playchess.com"]
[Source "ChessBase"]
[SourceQuality "1"]
[TimeControl "40/5400+30:1800+30"]

1. e4 c5 2. Nc3 e6 3. Nge2 d5 4. exd5 exd5 5. d4 Nc6 6. g3 c4 7. Bg2 Bb4 8. O-O Nge7 9. Nf4 Bxc3 10. bxc3 Bf5 11. Ba3 Qd7 12. Qc1 g5 13. Nh5 O-O-O 14. Re1 Bg4 15. Nf6 Qf5 16. Nxg4 Qxg4 17. Bxe7 Nxe7 18. Rxe7 h5 19. Qa3 Kb8 20. Rb1 Rd7 21. Bxd5 1-0

[Event "Czech Youth U16 Girls 2024"]
[Site "Kouty nad Desnou"]
[Date "2024.03.09"]
[Round "1.4"]
[White "Lackova, Ludmila"]
[Black "Dudkova, Josefina"]
[Result "1-0"]
[ECO "D35"]
[WhiteElo "1652"]
[BlackElo "1796"]
[Annotator "NA RC"]
[PlyCount "93"]
[EventDate "2024.03.10"]
[EventType "swiss"]
[EventRounds "9"]
[EventCountry "CZE"]
[SourceTitle "playchess.com"]
[Source "ChessBase"]
[SourceQuality "1"]
[TimeControl "40/5400+30:1800+30"]

1. d4 Nf6 2. c4 e6 3. Nc3 d5 4. cxd5 Nxd5 5. e4 Nxc3 6. bxc3 a6 7. Be3 b6 8. Bd3 Bb7 9. Nf3 Nd7 10. O-O c5 11. Rc1 Qc7 12. Qb3 b5 13. Qb2 c4 14. Bc2 Nf6 15. a4 Bc6 16. axb5 axb5 17. Ne5 Ba3 18. Qb1 Bxc1 19. Rxc1 h6 20. Qb4 Nd7 21. Nxc6 Qxc6 22. f3 f6 23. e5 Qb6 24. exf6 Nxf6 25. Bg6+ Kd7 26. Re1 Nd5 27. Qb2 Qa5 28. Bd2 Rhb8 29. Qc2 Qa2 30. Qe4 Ra6 31. Bf4 Rbb6 32. Qe5 Qa3 33. Bg3 Qe7 34. Be4 Qf6 35. Qh5 Nxc3 36. d5 Nxe4 37. dxe6+ Rxe6 38. Qxb5+ Ke7 39. Qb7+ Kf8 40. fxe4 Rac6 41. Rf1 c3 42. Be5 Rxe5 43. Qxc6 Qxf1+ 44. Kxf1 Re7 45. Qxc3 Kf7 46. Qc4+ Kf6 47. Kf2 1-0

[Event "Czech Youth U16 Girls 2024"]
[Site "Kouty nad Desnou"]
[Date "2024.03.09"]
[Round "1.5"]
[White "Sikorova, Jana"]
[Black "Stavova, Marketa"]
[Result "1-0"]
[ECO "D43"]
[WhiteElo "1788"]
[BlackElo "1641"]
[Annotator "NA RC"]
[PlyCount "53"]
[EventDate "2024.03.10"]
[EventType "swiss"]
[EventRounds "9"]
[EventCountry "CZE"]
[SourceTitle "playchess.com"]
[Source "ChessBase"]
[SourceQuality "1"]
[TimeControl "40/5400+30:1800+30"]

1. d4 d5 2. c4 e6 3. Nf3 c6 4. Nc3 Nf6 5. Bg5 h6 6. Bh4 Be7 7. e3 Nbd7 8. Bd3 O-O 9. Rc1 b6 10. cxd5 exd5 11. O-O Bb7 12. Qe2 b5 13. h3 Re8 14. Rc2 Qb6 15. Rfc1 a6 16. a3 Rad8 17. Bg3 Bf8 18. Ne5 Nxe5 19. Bxe5 Nd7 20. Bg3 Be7 21. Qf3 Nf6 22. Bf4 Kh8 23. Ne2 Rf8 24. Ng3 Ne8 25. Nf5 Bf6 26. Qh5 Nc7 27. Nxh6 1-0

[Event "Czech Youth U16 Girls 2024"]
[Site "Kouty nad Desnou"]
[Date "2024.03.09"]
[Round "1.6"]
[White "Zelenkova, Sofie"]
[Black "Vacekova, Anita"]
[Result "0-1"]
[ECO "A06"]
[WhiteElo "1636"]
[BlackElo "1783"]
[Annotator "NA RC"]
[PlyCount "58"]
[EventDate "2024.03.10"]
[EventType "swiss"]
[EventRounds "9"]
[EventCountry "CZE"]
[SourceTitle "playchess.com"]
[Source "ChessBase"]
[SourceQuality "1"]
[TimeControl "40/5400+30:1800+30"]

1. Nf3 d5 2. g3 Nf6 3. d4 Bg4 4. Bg2 e6 5. O-O Be7 6. c4 O-O 7. Nc3 c6 8. c5 Nbd7 9. b4 b6 10. Bb2 Rb8 11. Qd2 Bxf3 12. Bxf3 e5 13. e3 e4 14. Bg2 bxc5 15. bxc5 h5 16. Rab1 h4 17. Ne2 Nh7 18. Bc3 Ndf6 19. Ba5 Qd7 20. Rb4 Ng5 21. f3 Rxb4 22. Bxb4 exf3 23. Bxf3 Nxf3+ 24. Rxf3 Ne4 25. Qe1 Rb8 26. Ba3 Bg5 27. Nc3 Qg4 28. Nxe4 Qxe4 29. Rf1 Bxe3+ 0-1

[Event "Czech Youth U16 Girls 2024"]
[Site "Kouty nad Desnou"]
[Date "2024.03.09"]
[Round "1.7"]
[White "Dobsa, Emma"]
[Black "Holatova, Irena"]
[Result "1-0"]
[ECO "C55"]
[WhiteElo "1750"]
[BlackElo "1608"]
[Annotator "NA RC"]
[PlyCount "79"]
[EventDate "2024.03.10"]
[EventType "swiss"]
[EventRounds "9"]
[EventCountry "CZE"]
[SourceTitle "playchess.com"]
[Source "ChessBase"]
[SourceQuality "1"]
[TimeControl "40/5400+30:1800+30"]

1. e4 e5 2. Nf3 Nc6 3. Bc4 Nf6 4. d3 Be7 5. O-O O-O 6. Re1 d6 7. a4 Na5 8. Ba2 c5 9. c3 Nc6 10. Na3 h6 11. Bd2 Bg4 12. Nc2 Qd7 13. Ne3 Be6 14. Bxe6 Qxe6 15. Nf5 Rad8 16. c4 Rfe8 17. N3h4 Bf8 18. Re3 g6 19. Rg3 Kh7 20. Bxh6 Bxh6 21. Nxh6 Kxh6 22. Qd2+ Kh7 23. Nf5 gxf5 24. Qg5 Ng4 25. Rh3+ Nh6 26. exf5 Rg8 27. Qh4 Rg4 28. Qxg4 Qf6 29. Qe4 Kg8 30. g4 Kf8 31. Rg3 Qg5 32. Kg2 Ke7 33. Rh1 Kd7 34. h4 Qg7 35. g5 Ng8 36. h5 Kc8 37. h6 Qh7 38. g6 fxg6 39. fxg6 Qe7 40. h7 1-0

[Event "Czech Youth U16 Girls 2024"]
[Site "Kouty nad Desnou"]
[Date "2024.03.09"]
[Round "1.8"]
[White "Souralova, Jana"]
[Black "Dorazilova, Kristyna"]
[Result "0-1"]
[ECO "C42"]
[WhiteElo "1597"]
[BlackElo "1722"]
[Annotator "NA RC"]
[PlyCount "84"]
[EventDate "2024.03.10"]
[EventType "swiss"]
[EventRounds "9"]
[EventCountry "CZE"]
[SourceTitle "playchess.com"]
[Source "ChessBase"]
[SourceQuality "1"]
[TimeControl "40/5400+30:1800+30"]

1. e4 e5 2. Nf3 Nf6 3. Nc3 Bb4 4. Bc4 d6 5. d3 h6 6. h3 O-O 7. O-O Nc6 8. Ne2 Re8 9. Be3 Ne7 10. c3 Ba5 11. Qc2 Ng6 12. Rad1 Be6 13. Bxe6 Rxe6 14. Ng3 Qe8 15. Rfe1 Bb6 16. d4 Rd8 17. d5 Re7 18. c4 Bxe3 19. Rxe3 c6 20. Rc3 Rc7 21. Rc1 Rdc8 22. Qb3 c5 23. Qc2 Nf4 24. Nf5 Qd7 25. Ra3 g6 26. Ne3 a6 27. Kf1 N6h5 28. Ng1 Qe7 29. g4 Ng7 30. Ng2 Nxg2 31. Kxg2 h5 32. f3 Rf8 33. Qd2 f5 34. g5 h4 35. Qe1 Qxg5+ 36. Kh2 Nh5 37. Ne2 fxe4 38. fxe4 Rcf7 39. Qg1 Rf2+ 40. Kh1 Qxg1+ 41. Nxg1 Ng3+ 42. Rxg3 hxg3 0-1

[Event "Czech Youth U16 Girls 2024"]
[Site "Kouty nad Desnou"]
[Date "2024.03.09"]
[Round "1.9"]
[White "Dominikova, Denisa"]
[Black "Dlaskova, Eliska"]
[Result "1-0"]
[ECO "C02"]
[WhiteElo "1716"]
[BlackElo "1526"]
[Annotator "NA RC"]
[PlyCount "81"]
[EventDate "2024.03.10"]
[EventType "swiss"]
[EventRounds "9"]
[EventCountry "CZE"]
[SourceTitle "playchess.com"]
[Source "ChessBase"]
[SourceQuality "1"]
[TimeControl "40/5400+30:1800+30"]

1. e4 e6 2. d4 d5 3. e5 c5 4. c3 Qb6 5. Nf3 Nc6 6. Be2 Nh6 7. Bxh6 Qxb2 8. Be3 cxd4 9. Nxd4 Qxa1 10. Qc2 Nxd4 11. Bxd4 Ba3 12. O-O Qb2 13. Nxa3 Qxa3 14. c4 Bd7 15. cxd5 Rc8 16. Qb1 Qa4 17. dxe6 fxe6 18. Be3 Bc6 19. Bh5+ Kd8 20. Qd3+ Bd5 21. Bf3 Qxa2 22. Rd1 Qc4 23. Bg5+ Kd7 24. Qa3 Qc5 25. Qb3 Qb6 26. Bxd5 Qxb3 27. Bxb3+ Kc7 28. Bxe6 Rce8 29. Bg4 Kc6 30. Bd7+ Kb6 31. Bxe8 Rxe8 32. Be3+ Kc6 33. f4 b6 34. Kf2 a6 35. Rd6+ Kb5 36. Rxb6+ Ka5 37. e6 Rf8 38. Rb7 Ka4 39. e7 Re8 40. Bc5 a5 41. Rd7 1-0

[Event "Czech Youth U16 Girls 2024"]
[Site "Kouty nad Desnou"]
[Date "2024.03.09"]
[Round "1.10"]
[White "Urvalkova, Ema"]
[Black "Hetfleischova, Elen"]
[Result "0-1"]
[ECO "B35"]
[WhiteElo "1496"]
[BlackElo "1699"]
[Annotator "NA RC"]
[PlyCount "82"]
[EventDate "2024.03.10"]
[EventType "swiss"]
[EventRounds "9"]
[EventCountry "CZE"]
[SourceTitle "playchess.com"]
[Source "ChessBase"]
[SourceQuality "1"]
[TimeControl "40/5400+30:1800+30"]

1. e4 c5 2. Nf3 Nc6 3. d4 cxd4 4. Nxd4 g6 5. Nc3 Bg7 6. Be3 Nf6 7. Bc4 O-O 8. Bb3 d6 9. f3 Bd7 10. Qd2 a6 11. g4 b5 12. h4 h5 13. gxh5 Nxh5 14. Rg1 Kh7 15. O-O-O b4 16. Nd5 a5 17. Nxc6 Bxc6 18. Nf4 a4 19. Bc4 b3 20. cxb3 a3 21. bxa3 Ra5 22. a4 Qc7 23. Rg5 Rxg5 24. hxg5 Bxa4 25. Rh1 d5 26. Nxh5 gxh5 27. exd5 Qe5 28. Qd3+ Kg8 29. bxa4 Qa1+ 30. Qb1 Qc3+ 31. Kd1 Qxe3 32. Be2 Qxg5 33. Qb3 Rc8 34. Ke1 Rc1+ 35. Bd1 Qg3+ 36. Kd2 Bh6+ 37. Kd3 Qg6+ 38. Kd4 Qf6+ 39. Ke4 Qg6+ 40. Kd4 Bg7+ 41. Ke3 Rc3+ 0-1

[Event "Czech Youth U16 Girls 2024"]
[Site "Kouty nad Desnou"]
[Date "2024.03.10"]
[Round "2.1"]
[White "Kaplanova, Dominika"]
[Black "Dominikova, Denisa"]
[Result "0-1"]
[ECO "D37"]
[WhiteElo "1837"]
[BlackElo "1716"]
[Annotator "NA RC"]
[PlyCount "112"]
[EventDate "2024.03.10"]
[EventType "swiss"]
[EventCountry "CZE"]
[SourceTitle "playchess.com"]
[Source "ChessBase"]
[SourceQuality "1"]
[TimeControl "40/5400+30:1800+30"]

1. d4 {[%emt 0:00:30]} d5 {[%emt 0:00:21]} 2. c4 {[%emt 0:00:37]} e6 {[%emt 0:00:14]} 3. Nf3 {[%emt 0:00:31]} Nf6 {[%emt 0:00:25]} 4. Nc3 {[%emt 0:01:21]} Be7 {[%emt 0:01:31]} 5. Bf4 {[%emt 0:01:27]} Nbd7 {[%emt 0:04:17]} 6. cxd5 {[%emt 0:03:31]} exd5 {[%emt 0:01:19]} 7. h3 {[%emt 0:01:25]} c6 {[%emt 0:02:05]} 8. e3 {[%emt 0:02:46]} O-O {[%emt 0:01:25]} 9. Bd3 {[%emt 0:01:25]} Re8 {[%emt 0:00:54]} 10. O-O {[%emt 0:01:19]} Nf8 {[%emt 0:01:15]} 11. Ne5 {[%emt 0:01:59]} Ng6 {[%emt 0:10:32]} 12. Bh2 {[%emt 0:01:57]} Be6 {[%emt 0:08:11]} 13. f4 {[%emt 0:01:35]} Bc8 {[%emt 0:14:18]} 14. Qf3 {[%emt 0:14:59]} Nh4 {[%emt 0:06:52]} 15. Qf2 {[%emt 0:03:08]} Nf5 {[%emt 0:05:44]} 16. g4 {[%emt 0:06:32]} Nd6 {[%emt 0:02:31]} 17. Rae1 {[%emt 0:13:02]} h5 {[%emt 0:05:49]} 18. Qg2 {[%emt 0:05:28]} hxg4 {[%emt 0:06:28]} 19. hxg4 {[%emt 0:04:06]} Nfe4 {[%emt 0:05:13]} 20. Nf3 {[%emt 0:06:38]} f5 {[%emt 0:09:25]} 21. g5 {[%emt 0:02:26]} Be6 {[%emt 0:01:31]} 22. Ne5 {[%emt 0:03:28]} Nf7 {[%emt 0:04:59]} 23. Bxe4 {[%emt 0:03:56]} Nxe5 {[%emt 0:02:20]} 24. Bxd5 {[%emt 0:08:07]} Bxd5 {[%emt 0:00:53]} 25. Nxd5 {[%emt 0:00:06]} Nc4 {[%emt 0:02:03]} 26. Nc3 {[%emt 0:04:55]} Bb4 {[%emt 0:00:26]} 27. Rf3 {[%emt 0:02:23]} Qa5 {[%emt 0:01:02]} 28. Re2 {[%emt 0:02:19]} Bxc3 {[%emt 0:00:52]} 29. bxc3 {[%emt 0:00:27]} Qxc3 {[%emt 0:00:33]} 30. Qf2 {[%emt 0:01:13]} Nd6 {[%emt 0:00:42]} 31. Rc2 {[%emt 0:00:21]} Qa3 {[%emt 0:00:51]} 32. Qe2 {[%emt 0:00:38]} g6 {[%emt 0:00:45]} 33. Bg3 {[%emt 0:00:31]} Re7 {[%emt 0:00:20]} 34. e4 {[%emt 0:01:07]} Qa4 {[%emt 0:00:38]} 35. e5 {[%emt 0:00:20]} Ne4 {[%emt 0:00:32]} 36. Qc4+ {[%emt 0:00:34]} Qxc4 {[%emt 0:00:05]} 37. Rxc4 {[%emt 0:00:06]} Nd2 {[%emt 0:00:14]} 38. Rfc3 {[%emt 0:00:32]} Nxc4 {[%emt 0:00:08]} 39. Rxc4 {[%emt 0:00:04]} Rd8 {[%emt 0:00:18]} 40. Be1 {[%emt 0:00:41]} Kf7 {[%emt 0:01:22]} 41. Bb4 {[%emt 0:30:39]} Red7 {[%emt 0:01:43]} 42. Bc5 {[%emt 0:00:00]} Rh8 {[%emt 0:03:10]} 43. Bd6 {[%emt 0:00:00]} Ke6 {[%emt 0:01:41]} 44. Ra4 {[%emt 0:00:00]} Rdh7 {[%emt 0:04:31]} 45. Rxa7 {[%emt 0:00:00]} Rh1+ {[%emt 0:00:33]} 46. Kg2 {[%emt 0:00:00]} R1h2+ {[%emt 0:00:24]} 47. Kg1 {[%emt 0:00:00]} Rb2 {[%emt 0:00:59]} 48. Ra3 {[%emt 0:00:00]} Rhh2 {[%emt 0:00:42]} 49. Rf3 {[%emt 0:00:00]} Rbg2+ {[%emt 0:00:54]} 50. Kf1 {[%emt 0:00:00]} Rxa2 {[%emt 0:00:21]} 51. Kg1 {[%emt 0:00:00]} Rhd2 {[%emt 0:01:17]} 52. Bc5 {[%emt 0:00:00]} Kd5 {[%emt 0:01:22]} 53. e6 {[%emt 0:00:00]} Ke4 {[%emt 0:01:43]} 54. Rf2 {[%emt 0:04:04]} Rxf2 {[%emt 0:02:05]} 55. e7 {[%emt 0:01:17]} Kf3 {[%emt 0:00:39]} 56. e8=N {[%emt 0:00:39]} Ra1# {[%emt 0:00:18]} 0-1

[Event "Czech Youth U16 Girls 2024"]
[Site "Kouty nad Desnou"]
[Date "2024.03.10"]
[Round "2.2"]
[White "Dorazilova, Kristyna"]
[Black "Brezikova, Beata"]
[Result "0-1"]
[ECO "C70"]
[WhiteElo "1722"]
[BlackElo "1804"]
[Annotator "NA RC"]
[PlyCount "66"]
[EventDate "2024.03.10"]
[EventType "swiss"]
[EventCountry "CZE"]
[SourceTitle "playchess.com"]
[Source "ChessBase"]
[SourceQuality "1"]
[TimeControl "40/5400+30:1800+30"]

1. e4 {[%emt 0:00:01]} e5 {[%emt 0:00:03]} 2. Nf3 {[%emt 0:00:08]} Nc6 {[%emt 0:00:04]} 3. Bb5 {[%emt 0:00:06]} a6 {[%emt 0:00:04]} 4. Ba4 {[%emt 0:00:09]} Nge7 {[%emt 0:00:08]} 5. O-O {[%emt 0:01:37]} g6 {[%emt 0:00:09]} 6. c3 {[%emt 0:00:16]} Bg7 {[%emt 0:00:15]} 7. d4 {[%emt 0:00:47]} exd4 {[%emt 0:00:18]} 8. cxd4 {[%emt 0:00:12]} b5 {[%emt 0:00:47]} 9. Bc2 {[%emt 0:01:51]} O-O {[%emt 0:00:59]} 10. Be3 {[%emt 0:01:47]} d6 {[%emt 0:02:12]} 11. h3 {[%emt 0:02:42]} Bb7 {[%emt 0:15:58]} 12. Nc3 {[%emt 0:01:05]} Na5 {[%emt 0:01:42]} 13. b3 {[%emt 0:09:20]} Rc8 {[%emt 0:04:45]} 14. Qd2 {[%emt 0:03:28]} c5 {[%emt 0:05:24]} 15. d5 {[%emt 0:07:10]} b4 {[%emt 0:03:43]} 16. Ne2 {[%emt 0:00:09]} Bxa1 {[%emt 0:02:06]} 17. Rxa1 {[%emt 0:00:09]} Rb8 {[%emt 0:04:16]} 18. Bh6 {[%emt 0:02:34]} Re8 {[%emt 0:08:59]} 19. Ng5 {[%emt 0:01:17]} Bc8 {[%emt 0:05:09]} 20. Qf4 {[%emt 0:02:51]} f5 {[%emt 0:06:23]} 21. g4 {[%emt 0:02:05]} Nxd5 {[%emt 0:05:46]} 22. exd5 {[%emt 0:01:00]} Rxe2 {[%emt 0:01:03]} 23. gxf5 {[%emt 0:05:10]} Qf6 {[%emt 0:04:51]} 24. Rc1 {[%emt 0:10:50]} Bxf5 {[%emt 0:03:05]} 25. Ne6 {[%emt 0:08:11]} Qe5 {[%emt 0:03:07]} 26. Bxf5 {[%emt 0:03:45]} Qxf5 {[%emt 0:01:09]} 27. Qg3 {[%emt 0:04:16]} Rxa2 {[%emt 0:02:47]} 28. Rxc5 {[%emt 0:06:17]} Nxb3 {[%emt 0:03:06]} 29. Rc6 {[%emt 0:02:31]} Qxd5 {[%emt 0:01:47]} 30. Qxd6 {[%emt 0:03:41]} Ra1+ {[%emt 0:03:00]} 31. Kh2 {[%emt 0:00:13]} Rh1+ {[%emt 0:00:39]} 32. Kg3 {[%emt 0:00:06]} Rg1+ {[%emt 0:00:29]} 33. Kf4 {[%emt 0:00:30]} Qf5+ {[%emt 0:00:36]} 0-1

[Event "Czech Youth U16 Girls 2024"]
[Site "Kouty nad Desnou"]
[Date "2024.03.10"]
[Round "2.3"]
[White "Hetfleischova, Elen"]
[Black "Sikorova, Jana"]
[Result "0-1"]
[ECO "B28"]
[WhiteElo "1699"]
[BlackElo "1788"]
[Annotator "NA RC"]
[PlyCount "78"]
[EventDate "2024.03.10"]
[EventType "swiss"]
[EventCountry "CZE"]
[SourceTitle "playchess.com"]
[Source "ChessBase"]
[SourceQuality "1"]
[TimeControl "40/5400+30:1800+30"]

1. e4 {[%emt 0:00:03]} c5 {[%emt 0:00:16]} 2. Nf3 {[%emt 0:00:13]} a6 {[%emt 0:00:47]} 3. c3 {[%emt 0:00:39]} d5 {[%emt 0:00:39]} 4. exd5 {[%emt 0:00:37]} Qxd5 {[%emt 0:00:43]} 5. d4 {[%emt 0:00:45]} e6 {[%emt 0:00:28]} 6. Be3 {[%emt 0:00:57]} cxd4 {[%emt 0:00:47]} 7. cxd4 {[%emt 0:00:59]} Nf6 {[%emt 0:00:59]} 8. Nc3 {[%emt 0:00:17]} Qd6 {[%emt 0:01:03]} 9. Be2 {[%emt 0:04:22]} Nc6 {[%emt 0:01:32]} 10. a3 {[%emt 0:01:58]} Be7 {[%emt 0:01:27]} 11. Qd2 {[%emt 0:03:08]} b5 {[%emt 0:02:53]} 12. Bf4 {[%emt 0:05:22]} Qd8 {[%emt 0:04:43]} 13. b4 {[%emt 0:04:15]} Bb7 {[%emt 0:02:47]} 14. O-O {[%emt 0:02:22]} Rc8 {[%emt 0:03:05]} 15. Rfd1 {[%emt 0:12:30]} O-O {[%emt 0:05:27]} 16. Bd3 {[%emt 0:12:16]} Nd5 {[%emt 0:07:27]} 17. Rac1 {[%emt 0:13:56]} Bf6 {[%emt 0:12:54]} 18. Be3 {[%emt 0:07:30]} Nxc3 {[%emt 0:07:28]} 19. Rxc3 {[%emt 0:01:05]} Ne7 {[%emt 0:01:27]} 20. Bb1 {[%emt 0:06:13]} Rxc3 {[%emt 0:08:31]} 21. Qxc3 {[%emt 0:00:05]} Bxf3 {[%emt 0:00:56]} 22. gxf3 {[%emt 0:00:05]} Qd7 {[%emt 0:00:47]} 23. Qd3 {[%emt 0:05:26]} g6 {[%emt 0:01:32]} 24. Bf4 {[%emt 0:05:59]} Rd8 {[%emt 0:04:21]} 25. Be5 {[%emt 0:00:58]} Bg7 {[%emt 0:01:33]} 26. Bxg7 {[%emt 0:00:32]} Kxg7 {[%emt 0:00:06]} 27. Ba2 {[%emt 0:01:06]} Nd5 {[%emt 0:01:50]} 28. Bb3 {[%emt 0:01:32]} Rc8 {[%emt 0:01:43]} 29. Qd2 {[%emt 0:01:43]} Nc3 {[%emt 0:03:40]} 30. Re1 {[%emt 0:01:38]} Qc6 {[%emt 0:01:45]} 31. Kg2 {[%emt 0:01:08]} Nd5 {[%emt 0:01:29]} 32. Qg5 {[%emt 0:02:59]} Qc3 {[%emt 0:04:39]} 33. Qe5+ {[%emt 0:02:34]} f6 {[%emt 0:02:26]} 34. Qd6 {[%emt 0:01:20]} Qxe1 {[%emt 0:03:37]} 35. Qd7+ {[%emt 0:00:21]} Kh6 {[%emt 0:00:29]} 36. Qxc8 {[%emt 0:00:40]} Nf4+ {[%emt 0:00:42]} 37. Kg3 {[%emt 0:00:16]} Ne2+ {[%emt 0:01:59]} 38. Kh3 {[%emt 0:01:08]} Qf1+ {[%emt 0:00:30]} 39. Kh4 {[%emt 0:00:27]} g5+ {[%emt 0:00:23]} 0-1

[Event "Czech Youth U16 Girls 2024"]
[Site "Kouty nad Desnou"]
[Date "2024.03.10"]
[Round "2.4"]
[White "Vacekova, Anita"]
[Black "Janouskova, Adela"]
[Result "1-0"]
[ECO "B77"]
[WhiteElo "1783"]
[BlackElo "1684"]
[Annotator "NA RC"]
[PlyCount "129"]
[EventDate "2024.03.10"]
[EventType "swiss"]
[EventCountry "CZE"]
[SourceTitle "playchess.com"]
[Source "ChessBase"]
[SourceQuality "1"]
[TimeControl "40/5400+30:1800+30"]

1. e4 {[%emt 0:00:09]} c5 {[%emt 0:00:24]} 2. Nf3 {[%emt 0:00:13]} Nc6 {[%emt 0:00:58]} 3. d4 {[%emt 0:00:13]} cxd4 {[%emt 0:00:16]} 4. Nxd4 {[%emt 0:00:05]} Nf6 {[%emt 0:00:12]} 5. Nc3 {[%emt 0:00:04]} g6 {[%emt 0:00:44]} 6. Be3 {[%emt 0:01:02]} Bg7 {[%emt 0:00:26]} 7. Bc4 {[%emt 0:01:27]} O-O {[%emt 0:02:35]} 8. Qd2 {[%emt 0:01:02]} d6 {[%emt 0:07:51]} 9. f3 {[%emt 0:00:29]} Bd7 {[%emt 0:00:32]} 10. h4 {[%emt 0:00:36]} h5 {[%emt 0:03:46]} 11. O-O-O {[%emt 0:01:11]} Rb8 {[%emt 0:00:35]} 12. g4 {[%emt 0:07:01]} Ne5 {[%emt 0:02:14]} 13. Bb3 {[%emt 0:07:39]} b5 {[%emt 0:01:02]} 14. Bg5 {[%emt 0:06:53]} hxg4 {[%emt 0:06:26]} 15. Bxf6 {[%emt 0:05:09]} Bxf6 {[%emt 0:01:01]} 16. Nd5 {[%emt 0:10:14]} Bg7 {[%emt 0:05:46]} 17. h5 {[%emt 0:04:47]} Nc4 {[%emt 0:12:10]} 18. Qg5 {[%emt 0:11:57]} f6 {[%emt 0:05:38]} 19. Qxg6 {[%emt 0:09:19]} Qe8 {[%emt 0:02:13]} 20. Nf5 {[%emt 0:09:00]} Bxf5 {[%emt 0:04:19]} 21. exf5 {[%emt 0:00:28]} Qxg6 {[%emt 0:04:45]} 22. Nxe7+ {[%emt 0:05:25]} Kf7 {[%emt 0:00:06]} 23. Nxg6 {[%emt 0:00:23]} Bh6+ {[%emt 0:00:32]} 24. Kb1 {[%emt 0:00:30]} Rfd8 {[%emt 0:00:52]} 25. fxg4 {[%emt 0:01:20]} d5 {[%emt 0:01:06]} 26. Rhe1 {[%emt 0:03:25]} Rb7 {[%emt 0:02:29]} 27. Re2 {[%emt 0:03:02]} Rdd7 {[%emt 0:03:17]} 28. Bxc4 {[%emt 0:01:24]} dxc4 {[%emt 0:01:56]} 29. Rxd7+ {[%emt 0:00:47]} Rxd7 {[%emt 0:00:01]} 30. a3 {[%emt 0:01:02]} Bg5 {[%emt 0:04:03]} 31. Ka2 {[%emt 0:01:42]} Bh6 {[%emt 0:01:48]} 32. Re4 {[%emt 0:02:06]} Bg5 {[%emt 0:01:46]} 33. a4 {[%emt 0:01:01]} a6 {[%emt 0:01:20]} 34. Re6 {[%emt 0:01:41]} Ra7 {[%emt 0:01:40]} 35. Ka3 {[%emt 0:00:55]} Bd2 {[%emt 0:01:55]} 36. c3 {[%emt 0:02:06]} bxa4 {[%emt 0:02:29]} 37. Kxa4 {[%emt 0:01:10]} Rb7 {[%emt 0:00:09]} 38. Rc6 {[%emt 0:00:48]} Rxb2 {[%emt 0:00:53]} 39. Rxc4 {[%emt 0:00:16]} Kg7 {[%emt 0:04:52]} 40. Rc7+ {[%emt 0:01:08]} Kh6 {[%emt 0:03:22]} 41. Nh8 {[%emt 0:31:00]} Kg5 {[%emt 0:32:40]} 42. Nf7+ {[%emt 0:00:39]} Kxg4 {[%emt 0:01:41]} 43. h6 {[%emt 0:00:17]} Bxh6 {[%emt 0:01:19]} 44. Nxh6+ {[%emt 0:00:16]} Kg5 {[%emt 0:00:21]} 45. Rh7 {[%emt 0:00:00]} Rc2 {[%emt 0:00:00]} 46. Kb3 {[%emt 0:00:00]} Rc1 {[%emt 0:00:00]} 47. Kb2 {[%emt 0:00:00]} Rd1 {[%emt 0:00:00]} 48. c4 {[%emt 0:00:00]} Rd4 {[%emt 0:00:00]} 49. Kc3 {[%emt 0:00:00]} Rd1 {[%emt 0:00:00]} 50. Kb4 {[%emt 0:00:00]} Rc1 {[%emt 0:00:00]} 51. c5 {[%emt 0:00:00]} a5+ {[%emt 0:00:00]} 52. Kb5 {[%emt 0:00:00]} a4 {[%emt 0:00:00]} 53. c6 {[%emt 0:00:00]} a3 {[%emt 0:00:00]} 54. Ra7 {[%emt 0:00:00]} Kxh6 {[%emt 0:00:00]} 55. Rxa3 {[%emt 0:01:04]} Kg5 {[%emt 0:00:00]} 56. Kb6 {[%emt 0:01:57]} Kxf5 {[%emt 0:00:00]} 57. Ra5+ {[%emt 0:02:28]} Ke6 {[%emt 0:00:00]} 58. Kb7 {[%emt 0:01:02]} Rb1+ {[%emt 0:00:00]} 59. Kc8 {[%emt 0:00:29]} f5 {[%emt 0:00:00]} 60. c7 {[%emt 0:00:52]} f4 {[%emt 0:00:00]} 61. Kd8 {[%emt 0:00:34]} Rd1+ {[%emt 0:00:00]} 62. Ke8 {[%emt 0:00:18]} Rc1 {[%emt 0:00:00]} 63. Ra6+ {[%emt 0:00:15]} Kf5 {[%emt 0:00:00]} 64. Kd7 {[%emt 0:00:35]} f3 {[%emt 0:00:00]} 65. Rc6 {[%emt 0:00:59]} 1-0